fUSD/lending_fUSD_20240616
["ID","MTS","AMOUNT","RATE_DAILY","PERIOD"]
[329633537,1718519454070,-500.0,0.00022191,3]
[329633538,1718519454089,-517.12,0.00022191,3]
[329633539,1718519454099,-500.0,0.00022191,3]
[329633540,1718519454111,-500.0,0.00022191,3]
[329633541,1718519454122,-500.0,0.00022191,3]
[329633542,1718519454133,-500.0,0.00022191,3]
[329633543,1718519454144,-500.0,0.00022191,3]
[329633544,1718519454155,-500.0,0.00022191,3]
[329633545,1718519454167,-500.0,0.00022191,3]
[329633546,1718519454179,-500.0,0.00022191,3]
[329633547,1718519454193,-500.0,0.00022191,3]
[329633548,1718519454205,-500.0,0.00022191,3]
[329633549,1718519454220,-500.0,0.00022191,3]
[329633550,1718519454231,-500.0,0.00022191,3]
[329633551,1718519454242,-510.77547269,0.00022191,3]
[329633552,1718519454253,-211.95093269,0.00022191,3]
[329633553,1718519454269,-500.0,0.00022191,3]
[329633554,1718519454282,-500.0,0.00022191,3]
[329633555,1718519454306,-500.0,0.00022191,3]
[329633556,1718519454329,-500.0,0.00022191,3]
[329633557,1718519454352,-500.0,0.00022191,3]
[329633558,1718519454364,-558.88,0.00022191,3]
[329633559,1718519454375,-500.0,0.00022191,3]
[329633560,1718519454389,-500.0,0.00022191,3]
[329633561,1718519454402,-519.79082604,0.00022191,3]
[329633562,1718519454415,-695.39,0.00022191,3]
[329633563,1718519454426,-500.0,0.00022191,3]
[329633564,1718519454445,-500.0,0.00022191,3]
[329633565,1718519454485,-500.0,0.00022191,3]
[329633566,1718519454499,-500.0,0.00022191,3]
[329633567,1718519454509,-500.0,0.00022191,3]
[329633568,1718519454521,-513.1079719,0.00022191,3]
[329633569,1718519454531,-511.14521995,0.00022191,3]
[329633570,1718519454544,-500.0,0.00022191,3]
[329633571,1718519454559,-518.8,0.00022191,3]
[329633572,1718519454569,-500.0,0.00022191,3]
[329633573,1718519454580,-500.0,0.00022191,3]
[329633574,1718519454592,-500.0,0.00022191,3]
[329633575,1718519454603,-500.0,0.00022191,3]
[329633576,1718519454621,-500.0,0.00022191,3]
[329633577,1718519454638,-500.0,0.00022191,3]
[329633578,1718519454648,-500.0,0.00022191,3]
[329633579,1718519454658,-579.83,0.00022191,3]
[329633580,1718519454673,-500.0,0.00022191,3]
[329633581,1718519454684,-500.0,0.00022191,3]
[329633582,1718519454698,-500.0,0.00022191,3]
[329633583,1718519454716,-500.0,0.00022191,3]
[329633584,1718519454728,-500.0,0.00022191,3]
[329633585,1718519454740,-500.0,0.00022191,3]
[329633586,1718519454768,-665.03,0.00022191,3]
[329633587,1718519454780,-500.0,0.00022191,3]
[329633588,1718519454791,-500.0,0.00022191,3]
[329633589,1718519454809,-500.0,0.00022191,3]
[329633590,1718519454827,-500.0,0.00022191,3]
[329633591,1718519454859,-500.0,0.00022191,3]
[329633592,1718519454874,-638.86492325,0.00022191,3]
[329633593,1718519454905,-500.0,0.00022191,3]
[329633594,1718519454929,-500.0,0.00022191,3]
[329633595,1718519454949,-477.51383174,0.00022191,3]
[329633596,1718519454963,-500.0,0.00022191,3]
[329633597,1718519454973,-500.0,0.00022191,3]
[329633598,1718519454989,-500.0,0.00022191,3]
[329633599,1718519455001,-500.0,0.00022191,3]
[329633600,1718519455062,-500.0,0.00022191,3]
[329633601,1718519455076,-500.0,0.00022191,3]
[329633602,1718519455099,-500.0,0.00022191,3]
[329633603,1718519455114,-500.0,0.00022191,3]
[329633604,1718519455125,-500.0,0.00022191,3]
[329633605,1718519455153,-538.51,0.00022191,3]
[329633606,1718519455170,-500.0,0.00022191,3]
[329633607,1718519455182,-577.03,0.00022191,3]
[329633608,1718519455200,-500.0,0.00022191,3]
[329633609,1718519455229,-227.22,0.00022191,3]
[329633610,1718519455243,-500.0,0.00022191,3]
[329633611,1718519455256,-500.0,0.00022191,3]
[329633612,1718519455269,-500.0,0.00022191,3]
[329633613,1718519455280,-618.93,0.00022191,3]
[329633614,1718519455495,-500.0,0.00022191,3]
[329633615,1718519455506,-512.48278254,0.00022191,3]
[329633616,1718519455517,-500.0,0.00022191,3]
[329633617,1718519455534,-500.0,0.00022191,3]
[329633618,1718519455548,-500.0,0.00022191,3]
[329633619,1718519455561,-689.97,0.00022191,3]
[329633620,1718519455582,-500.0,0.00022191,3]
[329633621,1718519455609,-500.0,0.00022191,3]
[329633622,1718519455623,-500.0,0.00022191,3]
[329633623,1718519455639,-500.0,0.00022191,3]
[329633624,1718519455666,-500.0,0.00022191,3]
[329633625,1718519455678,-500.0,0.00022191,3]
[329633626,1718519455689,-500.0,0.00022191,3]
[329633627,1718519455702,-732.2,0.00022191,3]
[329633628,1718519455731,-500.0,0.00022191,3]
[329633629,1718519455762,-500.0,0.00022191,3]
[329633630,1718519455774,-500.0,0.00022191,3]
[329633631,1718519455791,-500.0,0.00022191,3]
[329633632,1718519455822,-500.0,0.00022191,3]
[329633633,1718519455853,-500.0,0.00022191,3]
[329633634,1718519455863,-500.0,0.00022191,3]
[329633635,1718519455878,-500.0,0.00022191,3]
[329633636,1718519455891,-500.0,0.00022191,3]
[329633637,1718519455901,-500.0,0.00022191,3]
[329633638,1718519455912,-500.0,0.00022191,3]
[329633639,1718519455928,-528.47,0.00022191,3]
[329633640,1718519455940,-500.0,0.00022191,3]
[329633641,1718519455963,-500.0,0.00022191,3]
[329633642,1718519455976,-500.0,0.00022191,3]
[329633643,1718519455992,-500.0,0.00022191,3]
[329633644,1718519456009,-500.0,0.00022191,3]
[329633645,1718519456063,-500.0,0.00022191,3]
[329633646,1718519456090,-500.0,0.00022191,3]
[329633647,1718519456102,-500.0,0.00022191,3]
[329633648,1718519456129,-500.0,0.00022191,3]
[329633649,1718519456156,-500.0,0.00022191,3]
[329633650,1718519456167,-523.56,0.00022191,3]
[329633651,1718519456179,-500.0,0.00022191,3]
[329633652,1718519456190,-500.0,0.00022191,3]
[329633653,1718519456202,-500.0,0.00022191,3]
[329633654,1718519456212,-784.49,0.00022191,3]
[329633655,1718519456244,-500.0,0.00022191,3]
[329633656,1718519456259,-500.0,0.00022191,3]
[329633657,1718519456273,-500.0,0.00022191,3]
[329633658,1718519456304,-412.04419255,0.00022191,3]
[329633659,1718519456315,-500.0,0.00022191,3]
[329633660,1718519456326,-500.0,0.00022191,3]
[329633661,1718519456343,-500.0,0.00022191,3]
[329633662,1718519456354,-500.0,0.00022191,3]
[329633663,1718519456364,-500.0,0.00022191,3]
[329633664,1718519456374,-500.0,0.00022191,3]
[329633665,1718519456385,-1409.82,0.00022191,3]
[329633666,1718519456395,-628.68,0.00022191,3]
[329633667,1718519456407,-208.85,0.00022191,3]
[329633668,1718519456423,-500.0,0.00022191,3]
[329633669,1718519456435,-500.0,0.00022191,3]
[329633670,1718519456448,-500.0,0.00022191,3]
[329633671,1718519456469,-500.0,0.00022191,3]
[329633672,1718519456491,-500.0,0.00022191,3]
[329633673,1718519456504,-500.0,0.00022191,3]
[329633674,1718519456516,-500.0,0.00022191,3]
[329633675,1718519456530,-500.0,0.00022191,3]
[329633676,1718519456544,-644.15,0.00022191,3]
[329633677,1718519456558,-500.0,0.00022191,3]
[329633678,1718519456572,-316.01609774,0.00022191,3]
[329633679,1718519456586,-500.0,0.00022191,3]
[329633680,1718519456598,-500.0,0.00022191,3]
[329633681,1718519456611,-500.0,0.00022191,3]
[329633682,1718519456621,-500.0,0.00022191,3]
[329633683,1718519456634,-1318.25,0.00022191,3]
[329633684,1718519456651,-500.0,0.00022191,3]
[329633685,1718519456662,-500.0,0.00022191,3]
[329633686,1718519456677,-500.0,0.00022191,3]
[329633687,1718519456694,-500.0,0.00022191,3]
[329633688,1718519456707,-500.0,0.00022191,3]
[329633689,1718519456726,-508.79405878,0.00022191,3]
[329633690,1718519456739,-500.0,0.00022191,3]
[329633691,1718519456750,-500.0,0.00022191,3]
[329633692,1718519456785,-500.0,0.00022191,3]
[329633693,1718519456801,-599.38732009,0.00022191,3]
[329633694,1718519456833,-500.0,0.00022191,3]
[329633695,1718519456849,-500.0,0.00022191,3]
[329633696,1718519456863,-500.0,0.00022191,3]
[329633697,1718519456875,-500.0,0.00022191,3]
[329633698,1718519456896,-827.33,0.00022191,3]
[329633699,1718519456908,-500.0,0.00022191,3]
[329633700,1718519456926,-500.0,0.00022191,3]
[329633701,1718519456936,-500.0,0.00022191,3]
[329633702,1718519456954,-526.71,0.00022191,3]
[329633703,1718519456966,-500.0,0.00022191,3]
[329633704,1718519456976,-500.0,0.00022191,3]
[329633705,1718519456988,-500.0,0.00022191,3]
[329633706,1718519456998,-500.0,0.00022191,3]
[329633707,1718519457012,-500.0,0.00022191,3]
[329633708,1718519457025,-500.0,0.00022191,3]
[329633709,1718519457044,-500.0,0.00022191,3]
[329633710,1718519457056,-500.0,0.00022191,3]
[329633711,1718519457068,-500.0,0.00022191,3]
[329633712,1718519457079,-500.0,0.00022191,3]
[329633713,1718519457098,-500.0,0.00022191,3]
[329633714,1718519457111,-447.79849326,0.00022191,3]
[329633715,1718519457125,-500.0,0.00022191,3]
[329633716,1718519457150,-500.0,0.00022191,3]
[329633717,1718519457163,-156.57535062,0.00022191,3]
[329633718,1718519457184,-500.0,0.00022191,3]
[329633719,1718519457194,-500.0,0.00022191,3]
[329633720,1718519457205,-666.89,0.00022191,3]
[329633721,1718519457219,-1530.6,0.00022191,3]
[329633722,1718519457232,-528.0,0.00022191,3]
[329633723,1718519457251,-500.0,0.00022191,3]
[329633724,1718519457262,-500.0,0.00022191,3]
[329633725,1718519457275,-1305.62,0.00022191,3]
[329633726,1718519457296,-2959.08,0.00022191,3]
[329633727,1718519457309,-572.8,0.00022191,3]
[329633728,1718519457320,-6771.39,0.00022191,3]
[329633729,1718519457332,-500.0,0.00022191,3]
[329633730,1718519457360,-2751.09,0.00022191,3]
[329633731,1718519457376,-500.0,0.00022191,3]
[329633732,1718519457397,-323.17075313,0.00022191,3]
[329633733,1718519457411,-556.12,0.00022191,3]
[329633734,1718519457433,-193.90394292,0.00022191,3]
[329633735,1718519457447,-500.0,0.00022191,3]
[329633736,1718519457458,-500.318703,0.00022191,3]
[329633737,1718519457470,-500.0,0.00022191,3]
[329633738,1718519457485,-500.0,0.00022191,3]
[329633739,1718519457497,-500.0,0.00022191,3]
[329633740,1718519457510,-500.318703,0.00022191,3]
[329633741,1718519457523,-4111.44,0.00022191,3]
[329633742,1718519457537,-500.0,0.00022191,3]
[329633743,1718519457553,-517.38,0.00022191,3]
[329633744,1718519457569,-500.0,0.00022191,3]
[329633745,1718519457586,-500.0,0.00022191,3]
[329633746,1718519457600,-1089.23,0.00022191,3]
[329633747,1718519457613,-500.0,0.00022191,3]
[329633748,1718519457625,-752.44,0.00022191,3]
[329633749,1718519457638,-500.0,0.00022191,3]
[329633750,1718519457651,-732.83,0.00022191,3]
[329633751,1718519457663,-500.0,0.00022191,3]
[329633752,1718519457690,-500.0,0.00022191,3]
[329633753,1718519457704,-598.68,0.00022191,3]
[329633754,1718519457718,-994.84,0.00022191,3]
[329633755,1718519457731,-5825.82,0.00022191,3]
[329633756,1718519457743,-500.0,0.00022191,3]
[329633757,1718519457755,-16567.34,0.00022191,3]
[329633758,1718519457771,-500.0,0.00022191,3]
[329633759,1718519457799,-923.48,0.00022191,3]
[329633760,1718519457817,-896.52,0.00022191,3]
[329633761,1718519457857,-500.0,0.00022191,3]
[329633762,1718519457869,-500.0,0.00022191,3]
[329633763,1718519457882,-565.58,0.00022191,3]
[329633764,1718519457902,-16140.01,0.00022191,3]
[329633765,1718519457915,-500.0,0.00022191,3]
[329633766,1718519457941,-867.54,0.00022191,3]
[329633767,1718519457966,-500.0,0.00022191,3]
[329633768,1718519457980,-500.0,0.00022191,3]
[329633769,1718519457993,-720.86,0.00022191,3]
[329633770,1718519458015,-500.0,0.00022191,3]
[329633771,1718519458046,-500.0,0.00022191,3]
[329633772,1718519458068,-1400.95,0.00022191,3]
[329633773,1718519458091,-500.0,0.00022191,3]
[329633774,1718519458115,-883.04,0.00022191,3]
[329633775,1718519458128,-788.31,0.00022191,3]
[329633776,1718519458147,-614.72,0.00022191,3]
[329633777,1718519458187,-1333.44,0.00022191,3]
[329633778,1718519458200,-636.64,0.00022191,3]
[329633779,1718519458220,-1108.65,0.00022191,3]
[329633780,1718519458232,-1571.99,0.00022191,3]
[329633781,1718519458247,-1584.23,0.00022191,3]
[329633782,1718519458275,-4835.69,0.00022191,3]
[329633783,1718519458291,-500.0,0.00022191,3]
[329633784,1718519458309,-675.02,0.00022191,3]
[329633785,1718519458330,-1506.09,0.00022191,3]
[329633786,1718519458346,-547.67,0.00022191,3]
[329633787,1718519458360,-500.0,0.00022191,3]
[329633788,1718519458371,-500.0,0.00022191,3]
[329633789,1718519458381,-2665.25,0.00022191,3]
[329633790,1718519458395,-500.0,0.00022191,3]
[329633791,1718519458406,-500.0,0.00022191,3]
[329633792,1718519458423,-500.58,0.00022191,3]
[329633793,1718519458445,-500.0,0.00022191,3]
[329633794,1718519458456,-500.0,0.00022191,3]
[329633795,1718519458467,-768.07,0.00022191,3]
[329633796,1718519458486,-2906.49,0.00022191,3]
[329633797,1718519458506,-551.95,0.00022191,3]
[329633798,1718519458519,-1245.63,0.00022191,3]
[329633799,1718519458537,-500.0,0.00022191,3]
[329633800,1718519458550,-679.0,0.00022191,3]
[329633801,1718519458564,-500.0,0.00022191,3]
[329633802,1718519458576,-954.41,0.00022191,3]
[329633803,1718519458590,-500.0,0.00022191,3]
[329633804,1718519458617,-500.0,0.00022191,3]
[329633805,1718519458628,-500.0,0.00022191,3]
[329633806,1718519458639,-998.69,0.00022191,3]
[329633807,1718519458654,-500.0,0.00022191,3]
[329633808,1718519458685,-500.0,0.00022191,3]
[329633809,1718519458711,-500.0,0.00022191,3]
[329633810,1718519458725,-526.53,0.00022191,3]
[329633811,1718519458775,-500.0,0.00022191,3]
[329633812,1718519458786,-574.1,0.00022191,3]
[329633813,1718519458798,-500.0,0.00022191,3]
[329633814,1718519458813,-1602.8,0.00022191,3]
[329633815,1718519458840,-500.0,0.00022191,3]
[329633816,1718519458880,-500.0,0.00022191,3]
[329633817,1718519458894,-1766.79,0.00022191,3]
[329633818,1718519458912,-500.0,0.00022191,3]
[329633819,1718519458927,-1254.36,0.00022191,3]
[329633820,1718519458947,-500.0,0.00022191,3]
[329633821,1718519458968,-622.71,0.00022191,3]
[329633822,1718519458987,-500.0,0.00022191,3]
[329633823,1718519459013,-1978.99,0.00022191,3]
[329633824,1718519459025,-500.0,0.00022191,3]
[329633825,1718519459085,-1271.11,0.00022191,3]
[329633826,1718519459144,-897.11,0.00022191,3]
[329633827,1718519459181,-1458.59,0.00022191,3]
[329633828,1718519459210,-673.16,0.00022191,3]
[329633829,1718519459252,-500.0,0.00022191,3]
[329633830,1718519459274,-500.0,0.00022191,3]
[329633831,1718519459287,-500.0,0.00022191,3]
[329633832,1718519459310,-503.26,0.00022191,3]
[329633833,1718519459365,-1882.15,0.00022191,3]
[329633834,1718519459379,-900.94,0.00022191,3]
[329633835,1718519459392,-6355.77,0.00022191,3]
[329633836,1718519459409,-797.28,0.00022191,3]
[329633837,1718519459420,-500.0,0.00022191,3]
[329633838,1718519459438,-500.0,0.00022191,3]
[329633839,1718519459453,-500.0,0.00022191,3]
[329633840,1718519459464,-774.66,0.00022191,3]
[329633841,1718519459477,-500.0,0.00022191,3]
[329633842,1718519459495,-749.71,0.00022191,3]
[329633843,1718519459520,-500.0,0.00022191,3]
[329633844,1718519459530,-564.43,0.00022191,3]
[329633845,1718519459542,-1539.73,0.00022191,3]
[329633846,1718519459560,-500.0,0.00022191,3]
[329633847,1718519459571,-500.0,0.00022191,3]
[329633848,1718519459582,-3132.14,0.00022191,3]
[329633849,1718519459596,-500.0,0.00022191,3]
[329633850,1718519459630,-500.0,0.00022191,3]
[329633851,1718519459653,-500.0,0.00022191,3]
[329633852,1718519459665,-500.0,0.00022191,3]
[329633853,1718519459688,-1719.13,0.00022191,3]
[329633854,1718519459713,-500.0,0.00022191,3]
[329633855,1718519459731,-500.0,0.00022191,3]
[329633856,1718519459746,-500.0,0.00022191,3]
[329633857,1718519459762,-500.0,0.00022191,3]
[329633858,1718519459787,-877.15,0.00022191,3]
[329633859,1718519459810,-638.19,0.00022191,3]
[329633860,1718519459837,-500.0,0.00022191,3]
[329633861,1718519459860,-507.88,0.00022191,3]
[329633862,1718519459871,-1256.01,0.00022191,3]
[329633863,1718519459882,-1319.04,0.00022191,3]
[329633864,1718519459903,-831.44,0.00022191,3]
[329633865,1718519459922,-500.0,0.00022191,3]
[329633866,1718519459940,-1880.82,0.00022191,3]
[329633867,1718519459966,-889.01,0.00022191,3]
[329633868,1718519459979,-500.0,0.00022191,3]
[329633869,1718519460008,-839.73,0.00022191,3]
[329633870,1718519460027,-1019.43,0.00022191,3]
[329633871,1718519460041,-500.0,0.00022191,3]
[329633872,1718519460059,-876.34,0.00022191,3]
[329633873,1718519460077,-1263.54,0.00022191,3]
[329633874,1718519460108,-1051.98,0.00022191,3]
[329633875,1718519460132,-500.0,0.00022191,3]
[329633876,1718519460145,-500.0,0.00022191,3]
[329633877,1718519460158,-868.27,0.00022191,3]
[329633878,1718519460195,-500.0,0.00022191,3]
[329633879,1718519460207,-500.0,0.00022191,3]
[329633880,1718519460218,-1623.39,0.00022191,3]
[329633881,1718519460243,-970.73,0.00022191,3]
[329633882,1718519460270,-898.14,0.00022191,3]
[329633883,1718519460282,-500.0,0.00022191,3]
[329633884,1718519460303,-826.07,0.00022191,3]
[329633885,1718519460314,-500.0,0.00022191,3]
[329633886,1718519460342,-500.0,0.00022191,3]
[329633887,1718519460356,-1666.34,0.00022191,3]
[329633888,1718519460369,-882.22,0.00022191,3]
[329633889,1718519460383,-500.0,0.00022191,3]
[329633890,1718519460400,-854.76,0.00022191,3]
[329633891,1718519460423,-938.36,0.00022191,3]
[329633892,1718519460435,-1419.04,0.00022191,3]
[329633893,1718519460446,-535.88,0.00022191,3]
[329633894,1718519460469,-771.1,0.00022191,3]
[329633895,1718519460494,-536.89787131,0.00022191,3]
[329633896,1718519460519,-209.50964964,0.00022191,3]
[329633897,1718519460536,-649.65069913,0.00022191,3]
[329633898,1718519460554,-500.0,0.00022191,3]
[329633899,1718519460565,-500.0,0.00022191,3]
[329633900,1718519460583,-1079.11,0.00022191,3]
[329633901,1718519460594,-500.0,0.00022191,3]
[329633902,1718519460617,-546.14,0.00022191,3]
[329633903,1718519460631,-500.0,0.00022191,3]
[329633904,1718519460648,-500.0,0.00022191,3]
[329633905,1718519460666,-637.63,0.00022191,3]
[329633906,1718519460679,-500.0,0.00022191,3]
[329633907,1718519460708,-500.0,0.00022191,3]
[329633908,1718519460719,-534.11,0.00022191,3]
[329633909,1718519460731,-260.22820768,0.00022191,3]
[329633910,1718519460748,-500.0,0.00022191,3]
[329633911,1718519460759,-990.93,0.00022191,3]
[329633912,1718519460775,-500.0,0.00022191,3]
[329633913,1718519460792,-733.88,0.00022191,3]
[329633914,1718519460803,-592.82,0.00022191,3]
[329633915,1718519460831,-500.0,0.00022191,3]
[329633916,1718519460850,-243.60561093,0.00022191,3]
[329633917,1718519460868,-500.0,0.00022191,3]
[329633918,1718519460887,-500.0,0.00022191,3]
[329633919,1718519460908,-500.0,0.00022191,3]
[329633920,1718519460932,-2735.16,0.00022191,3]
[329633921,1718519460943,-599.16,0.00022191,3]
[329633922,1718519460967,-500.0,0.00022191,3]
[329633923,1718519460992,-631.36,0.00022191,3]
[329633924,1718519461003,-500.0,0.00022191,3]
[329633925,1718519461014,-505.74,0.00022191,3]
[329633926,1718519461024,-609.47,0.00022191,3]
[329633927,1718519461035,-500.0,0.00022191,3]
[329633928,1718519461045,-707.73,0.00022191,3]
[329633929,1718519461055,-500.0,0.00022191,3]
[329633930,1718519461069,-1862.47,0.000222,2]
[329633931,1718519461096,-272.03207556,0.000222,2]
[329633932,1718519461120,-3708.115,0.00022201,2]
[329633933,1718519461140,-1000.0,0.00022321,2]
[329633934,1718519461150,-7950.93979624,0.00022349,2]
[329633935,1718519461160,-1635.47816523,0.00022358,2]
[329633936,1718519461171,-324.0,0.0002238,2]
[329633937,1718519461185,-208.0,0.0002238,2]
[329633938,1718519461196,-2409.0,0.00022395,2]
[329633939,1718519461216,-456.569,0.00022395,2]
[329633940,1718519461239,-1340.386,0.00022395,2]
[329633941,1718519461250,-152.747,0.00022395,2]
[329633942,1718519461262,-2010.185,0.00022395,2]
[329633943,1718519461277,-3288.3,0.00022395,2]
[329633944,1718519461291,-556.65,0.00022395,2]
[329633945,1718519461304,-1296.35,0.00022395,2]
[329633946,1718519461314,-5791.0,0.00022395,2]
[329633947,1718519461325,-1830.0,0.00022395,2]
[329633948,1718519461338,-359.0,0.00022395,2]
[329633949,1718519461349,-4264.958,0.00022395,2]
[329633950,1718519461361,-1195.0,0.00022395,2]
[329633951,1718519461379,-26715.485,0.00022395,2]
[329633952,1718519461419,-295.373,0.00022395,2]
[329633953,1718519461466,-150.5,0.00022435,15]
[329633954,1718519461495,-150.5,0.00022445,15]
[329633955,1718519461508,-193.57,0.00022445,15]
[329633956,1718519461519,-150.5,0.00022455,15]
[329633957,1718519461530,-150.5,0.00022455,15]
[329633958,1718519461543,-300.0,0.00022464,2]
[329633959,1718519461555,-300.0,0.00022464,2]
[329633960,1718519461566,-500.0,0.00022464,3]
[329633961,1718519461577,-500.0,0.00022465,3]
[329633962,1718519461588,-500.0,0.00022465,3]
[329633963,1718519461598,-500.0,0.00022465,3]
[329633964,1718519461610,-500.0,0.00022465,3]
[329633965,1718519461622,-500.0,0.00022465,3]
[329633966,1718519461649,-500.0,0.00022465,3]
[329633967,1718519461660,-500.0,0.00022465,3]
[329633968,1718519461671,-500.0,0.00022465,3]
[329633969,1718519461686,-500.0,0.00022465,3]
[329633970,1718519461703,-500.0,0.00022465,3]
[329633971,1718519461719,-500.0,0.00022465,3]
[329633972,1718519461736,-500.0,0.00022465,3]
[329633973,1718519461752,-500.0,0.00022465,3]
[329633974,1718519461763,-500.0,0.00022465,3]
[329633975,1718519461777,-500.0,0.00022465,3]
[329633976,1718519461789,-500.0,0.00022465,3]
[329633977,1718519461804,-500.0,0.00022465,3]
[329633978,1718519461821,-500.0,0.00022465,3]
[329633979,1718519461845,-500.0,0.00022465,3]
[329633980,1718519461862,-500.0,0.00022465,3]
[329633981,1718519461884,-519.58,0.00022465,3]
[329633982,1718519461905,-500.0,0.00022465,3]
[329633983,1718519461927,-500.0,0.00022465,3]
[329633984,1718519461959,-500.0,0.00022465,3]
[329633985,1718519461973,-500.0,0.00022465,3]
[329633986,1718519462000,-500.0,0.00022465,3]
[329633987,1718519462022,-500.0,0.00022465,3]
[329633988,1718519462039,-500.0,0.00022465,3]
[329633989,1718519462102,-500.0,0.00022465,3]
[329633990,1718519462134,-500.0,0.00022465,3]
[329633991,1718519462156,-500.0,0.00022465,3]
[329633992,1718519462185,-500.0,0.00022465,3]
[329633993,1718519462202,-500.0,0.00022465,3]
[329633994,1718519462247,-500.0,0.00022465,3]
[329633995,1718519462273,-500.0,0.00022465,3]
[329633996,1718519462306,-500.0,0.00022465,3]
[329633997,1718519462335,-500.0,0.00022465,3]
[329633998,1718519462349,-500.0,0.00022465,3]
[329633999,1718519462368,-500.0,0.00022465,3]
[329634000,1718519462380,-500.0,0.00022465,3]
[329634001,1718519462391,-500.0,0.00022465,3]
[329634002,1718519462409,-500.0,0.00022465,3]
[329634003,1718519462422,-521.4,0.00022465,3]
[329634004,1718519462434,-500.0,0.00022465,3]
[329634005,1718519462451,-500.0,0.00022465,3]
[329634006,1718519462482,-500.0,0.00022465,3]
[329634007,1718519462510,-843.59,0.00022465,3]
[329634008,1718519462530,-500.0,0.00022465,3]
[329634009,1718519462546,-500.0,0.00022465,3]
[329634010,1718519462560,-500.0,0.00022465,3]
[329634011,1718519462575,-881.45,0.00022465,3]
[329634012,1718519462587,-500.0,0.00022465,3]
[329634013,1718519462620,-500.0,0.00022465,3]
[329634014,1718519462631,-500.0,0.00022465,3]
[329634015,1718519462647,-500.0,0.00022465,3]
[329634016,1718519462663,-596.3,0.00022465,3]
[329634017,1718519462687,-500.0,0.00022465,3]
[329634018,1718519462712,-500.0,0.00022465,3]
[329634019,1718519462728,-500.0,0.00022465,3]
[329634020,1718519462740,-500.0,0.00022465,3]
[329634021,1718519462759,-517.49,0.00022465,3]
[329634022,1718519462771,-500.0,0.00022465,3]
[329634023,1718519462784,-500.0,0.00022465,3]
[329634024,1718519462804,-517.12,0.00022465,3]
[329634025,1718519463017,-500.0,0.00022465,3]
[329634026,1718519463046,-500.0,0.00022465,3]
[329634027,1718519463076,-500.0,0.00022465,3]
[329634028,1718519463087,-500.0,0.00022465,3]
[329634029,1718519463098,-500.0,0.00022465,3]
[329634030,1718519463110,-500.0,0.00022465,3]
[329634031,1718519463156,-500.0,0.00022465,3]
[329634032,1718519463169,-500.0,0.00022465,3]
[329634033,1718519463186,-500.0,0.00022465,3]
[329634034,1718519463197,-500.0,0.00022465,3]
[329634035,1718519463228,-500.0,0.00022465,3]
[329634036,1718519463253,-500.0,0.00022465,3]